[Event "Titled Tuesday Blitz February 15 Late 2022"]
[White "Mikhailovsky, Vladimir"]
[Black "Moroni, Luca Jr"]
[WhiteFideId "34105414"]
[BlackFideId "865834"]
[WhiteElo "2371"]
[BlackElo "2573"]
[Result "1/2-1/2"]
[Round "06"]
[TimeControl "180+1"]
[Date "2022.02.15"]
[WhiteClock "0:00:14"]
[BlackClock "0:00:11"]

1. d4 {[%clk 0:03:00]}  d6 {[%clk 0:03:00]} 2. e4 {[%clk 0:03:00]}  e5 {[%clk 0:03:00]} 3. Nf3 {[%clk 0:02:53]}  exd4 {[%clk 0:02:59]} 4. Nxd4 {[%clk 0:02:53]}  Nf6 {[%clk 0:03:00]} 5. Nc3 {[%clk 0:02:53]}  Be7 {[%clk 0:03:00]} 6. g3 {[%clk 0:02:53]}  O-O {[%clk 0:03:00]} 7. Bg2 {[%clk 0:02:54]}  Re8 {[%clk 0:03:01]} 8. O-O {[%clk 0:02:54]}  Bf8 {[%clk 0:03:00]} 9. Re1 {[%clk 0:02:54]}  c6 {[%clk 0:02:58]} 10. b3 {[%clk 0:02:52]}  Nbd7 {[%clk 0:02:52]} 11. Bb2 {[%clk 0:02:52]}  Qa5 {[%clk 0:02:51]} 12. Nf5 {[%clk 0:02:49]}  Qc7 {[%clk 0:02:46]} 13. Qd4 {[%clk 0:02:41]}  g6 {[%clk 0:02:37]} 14. Ne3 {[%clk 0:02:07]}  Bg7 {[%clk 0:02:36]} 15. Nc4 {[%clk 0:02:07]}  Re6 {[%clk 0:02:13]} 16. Rad1 {[%clk 0:01:56]}  Ne8 {[%clk 0:01:56]} 17. Qd2 {[%clk 0:01:45]}  b5 {[%clk 0:01:54]} 18. Ne3 {[%clk 0:01:36]}  Nef6 {[%clk 0:01:48]} 19. e5 {[%clk 0:01:15]}  Nxe5 {[%clk 0:01:40]} 20. Nxb5 {[%clk 0:01:07]}  cxb5 {[%clk 0:01:38]} 21. Bxa8 {[%clk 0:01:02]}  Bb7 {[%clk 0:01:12]} 22. Bxb7 {[%clk 0:00:59]}  Qxb7 {[%clk 0:01:13]} 23. Bxe5 {[%clk 0:00:59]}  dxe5 {[%clk 0:01:12]} 24. Nd5 {[%clk 0:00:42]}  h5 {[%clk 0:01:05]} 25. Nxf6+ {[%clk 0:00:40]}  Bxf6 {[%clk 0:01:06]} 26. Qd5 {[%clk 0:00:40]}  Qa6 {[%clk 0:01:04]} 27. f4 {[%clk 0:00:16]}  Qxa2 {[%clk 0:00:50]} 28. fxe5 {[%clk 0:00:16]}  Be7 {[%clk 0:00:45]} 29. Re2 {[%clk 0:00:15]}  Qa6 {[%clk 0:00:39]} 30. Rf1 {[%clk 0:00:15]}  Qb6+ {[%clk 0:00:31]} 31. Kg2 {[%clk 0:00:15]}  Bc5 {[%clk 0:00:26]} 32. Qf3 {[%clk 0:00:10]}  Qc7 {[%clk 0:00:23]} 33. h4 {[%clk 0:00:07]}  Kg7 {[%clk 0:00:22]} 34. g4 {[%clk 0:00:07]}  hxg4 {[%clk 0:00:22]} 35. Qxg4 {[%clk 0:00:07]}  Rxe5 {[%clk 0:00:20]} 36. Rxe5 {[%clk 0:00:08]}  Qxe5 {[%clk 0:00:21]} 37. Qf4 {[%clk 0:00:07]}  Qe6 {[%clk 0:00:19]} 38. h5 {[%clk 0:00:06]}  gxh5 {[%clk 0:00:18]} 39. Qg5+ {[%clk 0:00:06]}  Qg6 {[%clk 0:00:19]} 40. Rf5 {[%clk 0:00:07]}  Be3 {[%clk 0:00:06]} 41. Qxg6+ {[%clk 0:00:07]}  fxg6 {[%clk 0:00:07]} 42. Rxb5 {[%clk 0:00:08]}  g5 {[%clk 0:00:07]} 43. Kf3 {[%clk 0:00:07]}  Bc1 {[%clk 0:00:06]} 44. Rb7+ {[%clk 0:00:06]}  Kg6 {[%clk 0:00:06]} 45. Rxa7 {[%clk 0:00:07]}  g4+ {[%clk 0:00:07]} 46. Kg2 {[%clk 0:00:06]}  h4 {[%clk 0:00:06]} 47. Ra5 {[%clk 0:00:05]}  Bf4 {[%clk 0:00:06]} 48. Rd5 {[%clk 0:00:03]}  h3+ {[%clk 0:00:06]} 49. Kh1 {[%clk 0:00:02]}  g3 {[%clk 0:00:06]} 50. Rd3 {[%clk 0:00:02]}  Kf5 {[%clk 0:00:04]} 51. c4 {[%clk 0:00:01]}  Ke4 {[%clk 0:00:03]} 52. Rxg3 {[%clk 0:00:01]}  Bxg3 {[%clk 0:00:04]} 53. b4 {[%clk 0:00:01]}  Kd4 {[%clk 0:00:04]} 54. c5 {[%clk 0:00:02]}  Kd5 {[%clk 0:00:04]} 55. b5 {[%clk 0:00:02]}  Kxc5 {[%clk 0:00:03]} 56. b6 {[%clk 0:00:03]}  Bb8 {[%clk 0:00:04]} 57. b7 {[%clk 0:00:04]}  Kc6 {[%clk 0:00:04]} 58. Kg1 {[%clk 0:00:04]}  Kd5 {[%clk 0:00:04]} 59. Kh1 {[%clk 0:00:05]}  Ke6 {[%clk 0:00:04]} 60. Kg1 {[%clk 0:00:06]}  Kd7 {[%clk 0:00:05]} 61. Kh1 {[%clk 0:00:06]}  Kc6 {[%clk 0:00:05]} 62. Kg1 {[%clk 0:00:07]}  Kxb7 {[%clk 0:00:06]} 63. Kh1 {[%clk 0:00:08]}  Kc6 {[%clk 0:00:07]} 64. Kg1 {[%clk 0:00:09]}  Kd5 {[%clk 0:00:08]} 65. Kh1 {[%clk 0:00:10]}  Ke4 {[%clk 0:00:09]} 66. Kg1 {[%clk 0:00:11]}  Ke3 {[%clk 0:00:10]} 67. Kh1 {[%clk 0:00:12]}  Kf3 {[%clk 0:00:10]} 68. Kg1 {[%clk 0:00:13]}  Kg3 {[%clk 0:00:11]} 69. Kh1 {[%clk 0:00:14]}  Ba7 {[%clk 0:00:11]} 1/2-1/2


[Site "https://www.chess.com"]

[Event "Titled Tuesday Blitz February 15 Late 2022"]
[White "Moreira, Ronaldo Alonso"]
[Black "Golubenko, Valentina"]
[WhiteFideId "2110547"]
[BlackFideId "4501993"]
[WhiteElo "2037"]
[BlackElo "2164"]
[Result "0-1"]
[Round "06"]
[TimeControl "180+1"]
[Date "2022.02.16"]
[WhiteClock "0:00:08"]
[BlackClock "0:00:12"]

1. d4 {[%clk 0:03:00]}  Nf6 {[%clk 0:02:58]} 2. c4 {[%clk 0:02:57]}  c5 {[%clk 0:02:58]} 3. d5 {[%clk 0:02:57]}  d6 {[%clk 0:02:58]} 4. Nc3 {[%clk 0:02:56]}  g6 {[%clk 0:02:59]} 5. g3 {[%clk 0:02:57]}  e6 {[%clk 0:02:59]} 6. Bg2 {[%clk 0:02:42]}  exd5 {[%clk 0:02:59]} 7. cxd5 {[%clk 0:02:36]}  Bg7 {[%clk 0:02:58]} 8. Nf3 {[%clk 0:02:29]}  O-O {[%clk 0:02:58]} 9. O-O {[%clk 0:02:30]}  Re8 {[%clk 0:02:57]} 10. Nd2 {[%clk 0:02:29]}  a6 {[%clk 0:02:57]} 11. a4 {[%clk 0:02:29]}  Nbd7 {[%clk 0:02:55]} 12. Nc4 {[%clk 0:02:23]}  Ne5 {[%clk 0:02:54]} 13. Nxe5 {[%clk 0:02:23]}  Rxe5 {[%clk 0:02:54]} 14. Bf4 {[%clk 0:02:22]}  Re8 {[%clk 0:02:54]} 15. e4 {[%clk 0:02:18]}  Ng4 {[%clk 0:02:43]} 16. Qc2 {[%clk 0:02:13]}  Rb8 {[%clk 0:02:39]} 17. a5 {[%clk 0:02:10]}  b5 {[%clk 0:02:39]} 18. axb6 {[%clk 0:02:09]}  Qxb6 {[%clk 0:02:30]} 19. Na4 {[%clk 0:01:57]}  Qc7 {[%clk 0:02:30]} 20. Rab1 {[%clk 0:01:50]}  Bd7 {[%clk 0:02:27]} 21. b4 {[%clk 0:01:41]}  c4 {[%clk 0:02:25]} 22. Rfc1 {[%clk 0:01:27]}  Bd4 {[%clk 0:02:07]} 23. Rf1 {[%clk 0:01:15]}  c3 {[%clk 0:01:48]} 24. h3 {[%clk 0:01:13]}  Ne5 {[%clk 0:01:08]} 25. Nb2 {[%clk 0:01:06]}  Rxb4 {[%clk 0:01:00]} 26. Nd3 {[%clk 0:00:51]}  Nxd3 {[%clk 0:00:54]} 27. Qxd3 {[%clk 0:00:50]}  Bb5 {[%clk 0:00:44]} 28. Qc2 {[%clk 0:00:50]}  Rxb1 {[%clk 0:00:43]} 29. Rxb1 {[%clk 0:00:49]}  Rc8 {[%clk 0:00:33]} 30. Bf3 {[%clk 0:00:48]}  Qc4 {[%clk 0:00:18]} 31. Bxd6 {[%clk 0:00:41]}  Qd3 {[%clk 0:00:18]} 32. Qxd3 {[%clk 0:00:40]}  Bxd3 {[%clk 0:00:18]} 33. Rc1 {[%clk 0:00:40]}  c2 {[%clk 0:00:18]} 34. e5 {[%clk 0:00:34]}  Bb2 {[%clk 0:00:17]} 35. Re1 {[%clk 0:00:23]}  c1=Q {[%clk 0:00:16]} 36. Rxc1 {[%clk 0:00:24]}  Rxc1+ {[%clk 0:00:16]} 37. Kg2 {[%clk 0:00:18]}  Re1 {[%clk 0:00:14]} 38. e6 {[%clk 0:00:18]}  fxe6 {[%clk 0:00:14]} 39. dxe6 {[%clk 0:00:18]}  Bc4 {[%clk 0:00:14]} 40. e7 {[%clk 0:00:17]}  Bf6 {[%clk 0:00:13]} 41. Be2 {[%clk 0:00:08]}  Rxe2 {[%clk 0:00:12]} 0-1


[Site "https://www.chess.com"]

[Event "Titled Tuesday Blitz February 15 Late 2022"]
[White "Nazaretyan, Tigran"]
[Black "Levine, Joseph"]
[WhiteFideId "24162345"]
[BlackFideId "30940346"]
[WhiteElo "2192"]
[BlackElo "1802"]
[Result "1-0"]
[Round "06"]
[TimeControl "180+1"]
[Date "2022.02.16"]
[WhiteClock "0:00:15"]
[BlackClock "0:00:28"]

1. d4 {[%clk 0:03:00]}  d5 {[%clk 0:02:59]} 2. c4 {[%clk 0:02:59]}  e6 {[%clk 0:02:59]} 3. Nf3 {[%clk 0:02:59]}  Nf6 {[%clk 0:02:59]} 4. Nc3 {[%clk 0:02:59]}  c6 {[%clk 0:02:59]} 5. e3 {[%clk 0:02:59]}  Nbd7 {[%clk 0:02:59]} 6. Qc2 {[%clk 0:02:59]}  b6 {[%clk 0:02:57]} 7. Bd3 {[%clk 0:02:55]}  Bb7 {[%clk 0:02:57]} 8. O-O {[%clk 0:02:55]}  Be7 {[%clk 0:02:57]} 9. b3 {[%clk 0:02:55]}  Rc8 {[%clk 0:02:55]} 10. e4 {[%clk 0:02:52]}  dxe4 {[%clk 0:02:55]} 11. Nxe4 {[%clk 0:02:53]}  Nxe4 {[%clk 0:02:54]} 12. Bxe4 {[%clk 0:02:54]}  Qc7 {[%clk 0:02:51]} 13. Re1 {[%clk 0:02:40]}  Nf6 {[%clk 0:02:46]} 14. Bd3 {[%clk 0:02:40]}  c5 {[%clk 0:02:46]} 15. d5 {[%clk 0:02:14]}  exd5 {[%clk 0:02:46]} 16. cxd5 {[%clk 0:02:14]}  O-O {[%clk 0:02:39]} 17. Ng5 {[%clk 0:02:02]}  h6 {[%clk 0:02:36]} 18. Nh7 {[%clk 0:01:57]}  Nxh7 {[%clk 0:02:34]} 19. Bxh7+ {[%clk 0:01:58]}  Kh8 {[%clk 0:02:35]} 20. Be4 {[%clk 0:01:42]}  Bd6 {[%clk 0:02:30]} 21. h3 {[%clk 0:01:40]}  Be5 {[%clk 0:02:29]} 22. Bb2 {[%clk 0:01:37]}  Bxb2 {[%clk 0:02:29]} 23. Qxb2 {[%clk 0:01:38]}  Rcd8 {[%clk 0:02:28]} 24. Rad1 {[%clk 0:01:37]}  Rfe8 {[%clk 0:02:28]} 25. Qc2 {[%clk 0:01:09]}  Qe5 {[%clk 0:02:09]} 26. Qd2 {[%clk 0:01:02]}  Qd6 {[%clk 0:01:57]} 27. Bf3 {[%clk 0:01:01]}  Rxe1+ {[%clk 0:01:53]} 28. Qxe1 {[%clk 0:01:01]}  Kg8 {[%clk 0:01:50]} 29. Qe4 {[%clk 0:01:00]}  g6 {[%clk 0:01:48]} 30. h4 {[%clk 0:01:00]}  Kg7 {[%clk 0:01:45]} 31. h5 {[%clk 0:01:00]}  g5 {[%clk 0:01:31]} 32. Qf5 {[%clk 0:00:58]}  Qf6 {[%clk 0:01:28]} 33. Qc2 {[%clk 0:00:55]}  Rd6 {[%clk 0:01:24]} 34. a4 {[%clk 0:00:54]}  Qe5 {[%clk 0:01:23]} 35. Qc4 {[%clk 0:00:53]}  f5 {[%clk 0:01:16]} 36. g3 {[%clk 0:00:52]}  Kf6 {[%clk 0:01:11]} 37. Rd3 {[%clk 0:00:51]}  Qe1+ {[%clk 0:01:01]} 38. Kg2 {[%clk 0:00:47]}  g4 {[%clk 0:00:51]} 39. Bxg4 {[%clk 0:00:41]}  Qe4+ {[%clk 0:00:49]} 40. Bf3 {[%clk 0:00:37]}  Qe5 {[%clk 0:00:46]} 41. Qc1 {[%clk 0:00:35]}  f4 {[%clk 0:00:41]} 42. g4 {[%clk 0:00:32]}  Bxd5 {[%clk 0:00:38]} 43. Rxd5 {[%clk 0:00:23]}  Rxd5 {[%clk 0:00:39]} 44. Bxd5 {[%clk 0:00:23]}  Qxd5+ {[%clk 0:00:40]} 45. f3 {[%clk 0:00:24]}  Qd4 {[%clk 0:00:38]} 46. Qc2 {[%clk 0:00:21]}  Ke5 {[%clk 0:00:33]} 47. Qf5+ {[%clk 0:00:20]}  Kd6 {[%clk 0:00:33]} 48. Qg6+ {[%clk 0:00:21]}  Kc7 {[%clk 0:00:33]} 49. Qxh6 {[%clk 0:00:21]}  Qb2+ {[%clk 0:00:26]} 50. Kh3 {[%clk 0:00:21]}  Qxb3 {[%clk 0:00:26]} 51. Qxf4+ {[%clk 0:00:21]}  Kb7 {[%clk 0:00:26]} 52. h6 {[%clk 0:00:21]}  Qb1 {[%clk 0:00:22]} 53. Qe4+ {[%clk 0:00:20]}  Qxe4 {[%clk 0:00:19]} 54. fxe4 {[%clk 0:00:21]}  c4 {[%clk 0:00:20]} 55. h7 {[%clk 0:00:21]}  c3 {[%clk 0:00:20]} 56. h8=Q {[%clk 0:00:21]}  c2 {[%clk 0:00:21]} 57. Qc3 {[%clk 0:00:21]}  c1=Q {[%clk 0:00:20]} 58. Qxc1 {[%clk 0:00:21]}  Kb8 {[%clk 0:00:21]} 59. g5 {[%clk 0:00:21]}  Kb7 {[%clk 0:00:21]} 60. g6 {[%clk 0:00:22]}  a5 {[%clk 0:00:21]} 61. g7 {[%clk 0:00:22]}  b5 {[%clk 0:00:22]} 62. g8=Q {[%clk 0:00:22]}  bxa4 {[%clk 0:00:22]} 63. e5 {[%clk 0:00:22]}  a3 {[%clk 0:00:23]} 64. e6 {[%clk 0:00:22]}  a2 {[%clk 0:00:24]} 65. e7 {[%clk 0:00:22]}  a1=Q {[%clk 0:00:25]} 66. Qxa1 {[%clk 0:00:22]}  a4 {[%clk 0:00:26]} 67. e8=Q {[%clk 0:00:21]}  a3 {[%clk 0:00:26]} 68. Qgf7+ {[%clk 0:00:21]}  Kb6 {[%clk 0:00:27]} 69. Qee6+ {[%clk 0:00:21]}  Kb5 {[%clk 0:00:27]} 70. Qae5+ {[%clk 0:00:20]}  Kb4 {[%clk 0:00:27]} 71. Q5d5 {[%clk 0:00:20]}  a2 {[%clk 0:00:28]} 72. Qxa2 {[%clk 0:00:19]}  Kc3 {[%clk 0:00:28]} 73. Qe3+ {[%clk 0:00:15]}  Kb4 {[%clk 0:00:28]} 74. Qb7# {[%clk 0:00:15]} 1-0


[Site "https://www.chess.com"]

[Event "Titled Tuesday Blitz February 15 Late 2022"]
[White "Papayan, Oleg"]
[Black "Kim, Sergey"]
[WhiteFideId "4193911"]
[BlackFideId "13700570"]
[WhiteElo "2038"]
[BlackElo "2609"]
[Result "0-1"]
[Round "06"]
[TimeControl "180+1"]
[Date "2022.02.16"]
[WhiteClock "0:00:34"]
[BlackClock "0:01:25"]

1. e4 {[%clk 0:03:00]}  e5 {[%clk 0:02:58]} 2. Nf3 {[%clk 0:03:00]}  Nc6 {[%clk 0:02:58]} 3. Bb5 {[%clk 0:03:00]}  a6 {[%clk 0:02:59]} 4. Bxc6 {[%clk 0:03:01]}  dxc6 {[%clk 0:02:58]} 5. O-O {[%clk 0:03:02]}  f6 {[%clk 0:02:58]} 6. d4 {[%clk 0:03:00]}  exd4 {[%clk 0:02:58]} 7. Nxd4 {[%clk 0:03:01]}  Ne7 {[%clk 0:02:58]} 8. Nc3 {[%clk 0:02:50]}  Ng6 {[%clk 0:02:58]} 9. Be3 {[%clk 0:02:44]}  Bb4 {[%clk 0:02:58]} 10. Nce2 {[%clk 0:02:31]}  O-O {[%clk 0:02:56]} 11. c3 {[%clk 0:02:27]}  Bd6 {[%clk 0:02:55]} 12. Qb3+ {[%clk 0:02:24]}  Kh8 {[%clk 0:02:54]} 13. Ne6 {[%clk 0:02:22]}  Bxe6 {[%clk 0:02:51]} 14. Qxe6 {[%clk 0:02:23]}  Re8 {[%clk 0:02:49]} 15. Qg4 {[%clk 0:02:01]}  Qe7 {[%clk 0:02:41]} 16. f3 {[%clk 0:01:53]}  Qe5 {[%clk 0:02:39]} 17. Qh3 {[%clk 0:01:32]}  Qb5 {[%clk 0:02:37]} 18. Rfe1 {[%clk 0:01:00]}  Qxb2 {[%clk 0:02:30]} 19. Rab1 {[%clk 0:01:00]}  Qxa2 {[%clk 0:02:28]} 20. Rxb7 {[%clk 0:01:01]}  a5 {[%clk 0:02:19]} 21. Nd4 {[%clk 0:00:53]}  Qc4 {[%clk 0:02:11]} 22. Rc1 {[%clk 0:00:41]}  a4 {[%clk 0:01:54]} 23. Nf5 {[%clk 0:00:40]}  a3 {[%clk 0:01:47]} 24. Nxd6 {[%clk 0:00:38]}  cxd6 {[%clk 0:01:47]} 25. Qd7 {[%clk 0:00:39]}  Re7 {[%clk 0:01:30]} 26. Qxe7 {[%clk 0:00:36]}  Nxe7 {[%clk 0:01:29]} 27. Rxe7 {[%clk 0:00:37]}  a2 {[%clk 0:01:28]} 28. Rd7 {[%clk 0:00:34]}  a1=Q {[%clk 0:01:25]} 0-1


[Site "https://www.chess.com"]

[Event "Titled Tuesday Blitz February 15 Late 2022"]
[White "Plotkin, Mark"]
[Black "Ozdemir, Serhan Berat"]
[WhiteFideId "2611651"]
[BlackFideId "6374611"]
[WhiteElo "2178"]
[BlackElo "1920"]
[Result "1-0"]
[Round "06"]
[TimeControl "180+1"]
[Date "2022.02.16"]
[WhiteClock "0:00:43"]
[BlackClock "0:00:01"]

1. e4 {[%clk 0:03:00]}  c5 {[%clk 0:02:59]} 2. Nf3 {[%clk 0:02:56]}  e6 {[%clk 0:02:57]} 3. d4 {[%clk 0:02:57]}  cxd4 {[%clk 0:02:55]} 4. Nxd4 {[%clk 0:02:58]}  a6 {[%clk 0:02:55]} 5. c4 {[%clk 0:02:56]}  Nf6 {[%clk 0:02:53]} 6. Nc3 {[%clk 0:02:48]}  Qc7 {[%clk 0:02:52]} 7. Bd3 {[%clk 0:02:48]}  b6 {[%clk 0:02:45]} 8. O-O {[%clk 0:02:35]}  Bb7 {[%clk 0:02:44]} 9. Kh1 {[%clk 0:02:04]}  d6 {[%clk 0:02:29]} 10. f4 {[%clk 0:01:50]}  Nbd7 {[%clk 0:02:25]} 11. Be3 {[%clk 0:01:46]}  g6 {[%clk 0:02:07]} 12. Rc1 {[%clk 0:01:40]}  Bg7 {[%clk 0:02:06]} 13. f5 {[%clk 0:01:38]}  e5 {[%clk 0:01:58]} 14. Nf3 {[%clk 0:01:26]}  Nc5 {[%clk 0:01:40]} 15. Nd5 {[%clk 0:01:21]}  Qd8 {[%clk 0:01:26]} 16. fxg6 {[%clk 0:01:14]}  hxg6 {[%clk 0:01:20]} 17. Bg5 {[%clk 0:01:14]}  Rh5 {[%clk 0:00:43]} 18. Bb1 {[%clk 0:01:05]}  Bxd5 {[%clk 0:00:26]} 19. cxd5 {[%clk 0:01:03]}  Qd7 {[%clk 0:00:25]} 20. Qe2 {[%clk 0:01:01]}  a5 {[%clk 0:00:14]} 21. a3 {[%clk 0:00:58]}  a4 {[%clk 0:00:14]} 22. Bd3 {[%clk 0:00:54]}  Ke7 {[%clk 0:00:10]} 23. Kg1 {[%clk 0:00:50]}  Rah8 {[%clk 0:00:07]} 24. Rc3 {[%clk 0:00:47]}  Qg4 {[%clk 0:00:06]} 25. Rfc1 {[%clk 0:00:45]}  Bh6 {[%clk 0:00:04]} 26. Bxh6 {[%clk 0:00:45]}  R8xh6 {[%clk 0:00:04]} 27. Kf1 {[%clk 0:00:44]}  Nfd7 {[%clk 0:00:04]} 28. Ke1 {[%clk 0:00:44]}  Qf4 {[%clk 0:00:04]} 29. Bb5 {[%clk 0:00:43]}  Nf6 {[%clk 0:00:03]} 30. Bd3 {[%clk 0:00:42]}  Nfxe4 {[%clk 0:00:02]} 31. Rc4 {[%clk 0:00:42]}  f5 {[%clk 0:00:01]} 32. g3 {[%clk 0:00:43]}  Qg5 {[%clk 0:00:01]} 33. Bxe4 {[%clk 0:00:42]}  fxe4 {[%clk 0:00:01]} 34. Nh4 {[%clk 0:00:42]}  Rxh4 {[%clk 0:00:01]} 35. gxh4 {[%clk 0:00:43]}  Qxh4+ {[%clk 0:00:02]} 36. Kd1 {[%clk 0:00:43]}  Qf4 {[%clk 0:00:03]} 37. Qd2 {[%clk 0:00:42]}  Rxh2 {[%clk 0:00:03]} 38. Qxf4 {[%clk 0:00:42]}  exf4 {[%clk 0:00:04]} 39. R4c2 {[%clk 0:00:42]}  Rh1+ {[%clk 0:00:04]} 40. Ke2 {[%clk 0:00:43]}  f3+ {[%clk 0:00:04]} 41. Ke3 {[%clk 0:00:44]}  Rxc1 {[%clk 0:00:04]} 42. Rxc1 {[%clk 0:00:44]}  Kf6 {[%clk 0:00:04]} 43. Rh1 {[%clk 0:00:45]}  g5 {[%clk 0:00:02]} 44. Rh8 {[%clk 0:00:45]}  Kf5 {[%clk 0:00:02]} 45. Rb8 {[%clk 0:00:45]}  Kg4 {[%clk 0:00:01]} 46. Rxb6 {[%clk 0:00:44]}  Kg3 {[%clk 0:00:02]} 47. Rxd6 {[%clk 0:00:45]}  g4 {[%clk 0:00:01]} 48. Rg6 {[%clk 0:00:45]}  f2 {[%clk 0:00:02]} 49. Ke2 {[%clk 0:00:44]}  Nd3 {[%clk 0:00:02]} 50. Rf6 {[%clk 0:00:43]}  Nf4+ {[%clk 0:00:02]} 51. Rxf4 {[%clk 0:00:44]}  Kxf4 {[%clk 0:00:03]} 52. d6 {[%clk 0:00:44]}  g3 {[%clk 0:00:03]} 53. d7 {[%clk 0:00:44]}  g2 {[%clk 0:00:03]} 54. Kxf2 {[%clk 0:00:44]}  g1=Q+ {[%clk 0:00:01]} 55. Kxg1 {[%clk 0:00:43]}  Ke3 {[%clk 0:00:01]} 56. d8=Q {[%clk 0:00:43]} 1-0


[Site "https://www.chess.com"]

[Event "Titled Tuesday Blitz February 15 Late 2022"]
[White "Prohorov, Olexandr"]
[Black "Miszler, Levente"]
[WhiteFideId "14105578"]
[BlackFideId "763276"]
[WhiteElo "1993"]
[BlackElo "1966"]
[Result "0-1"]
[Round "06"]
[TimeControl "180+1"]
[Date "2022.02.16"]
[WhiteClock "0:00:10"]
[BlackClock "0:00:23"]

1. d4 {[%clk 0:02:58]}  e6 {[%clk 0:03:00]} 2. c4 {[%clk 0:02:58]}  Nf6 {[%clk 0:02:59]} 3. Nc3 {[%clk 0:02:59]}  d5 {[%clk 0:02:59]} 4. Nf3 {[%clk 0:02:58]}  Be7 {[%clk 0:02:53]} 5. Bf4 {[%clk 0:02:59]}  O-O {[%clk 0:02:48]} 6. e3 {[%clk 0:02:59]}  c6 {[%clk 0:02:47]} 7. Bd3 {[%clk 0:02:57]}  dxc4 {[%clk 0:02:46]} 8. Bxc4 {[%clk 0:02:57]}  Nbd7 {[%clk 0:02:46]} 9. O-O {[%clk 0:02:57]}  Nd5 {[%clk 0:02:46]} 10. Bg3 {[%clk 0:02:57]}  b5 {[%clk 0:02:44]} 11. Bd3 {[%clk 0:02:56]}  b4 {[%clk 0:02:42]} 12. Ne2 {[%clk 0:02:45]}  c5 {[%clk 0:02:41]} 13. e4 {[%clk 0:02:42]}  N5f6 {[%clk 0:02:39]} 14. Rc1 {[%clk 0:02:37]}  Bb7 {[%clk 0:02:35]} 15. Qc2 {[%clk 0:02:26]}  Rc8 {[%clk 0:02:33]} 16. Qb1 {[%clk 0:02:26]}  c4 {[%clk 0:02:27]} 17. Bc2 {[%clk 0:02:16]}  h6 {[%clk 0:02:06]} 18. Rfd1 {[%clk 0:02:14]}  Nb6 {[%clk 0:02:00]} 19. Nf4 {[%clk 0:01:56]}  b3 {[%clk 0:01:48]} 20. axb3 {[%clk 0:01:56]}  cxb3 {[%clk 0:01:49]} 21. Bd3 {[%clk 0:01:55]}  Qd7 {[%clk 0:01:29]} 22. Rxc8 {[%clk 0:01:40]}  Rxc8 {[%clk 0:01:30]} 23. h3 {[%clk 0:01:13]}  Qa4 {[%clk 0:01:28]} 24. Rc1 {[%clk 0:01:02]}  Qa2 {[%clk 0:01:16]} 25. Rxc8+ {[%clk 0:01:01]}  Bxc8 {[%clk 0:01:10]} 26. Nd2 {[%clk 0:00:58]}  Na4 {[%clk 0:00:56]} 27. Nc4 {[%clk 0:00:43]}  Ba6 {[%clk 0:00:50]} 28. Qc1 {[%clk 0:00:37]}  Bxc4 {[%clk 0:00:34]} 29. Qxc4 {[%clk 0:00:35]}  Nxb2 {[%clk 0:00:30]} 30. Qc8+ {[%clk 0:00:34]}  Bf8 {[%clk 0:00:30]} 31. Nxe6 {[%clk 0:00:16]}  fxe6 {[%clk 0:00:29]} 32. Bd6 {[%clk 0:00:16]}  Nxd3 {[%clk 0:00:28]} 33. Qxf8+ {[%clk 0:00:11]}  Kh7 {[%clk 0:00:27]} 34. e5 {[%clk 0:00:09]}  Qxf2+ {[%clk 0:00:25]} 35. Kh1 {[%clk 0:00:09]}  Qf1+ {[%clk 0:00:24]} 36. Kh2 {[%clk 0:00:09]}  Ng4+ {[%clk 0:00:23]} 37. hxg4 {[%clk 0:00:09]}  Qxf8 {[%clk 0:00:23]} 38. Bxf8 {[%clk 0:00:10]}  b2 {[%clk 0:00:24]} 39. g5 {[%clk 0:00:09]}  b1=Q {[%clk 0:00:23]} 40. g6+ {[%clk 0:00:10]}  Kxg6 {[%clk 0:00:23]} 0-1


[Site "https://www.chess.com"]

[Event "Titled Tuesday Blitz February 15 Late 2022"]
[White "Rasulov, Vugar"]
[Black "Zhigalko, Sergei"]
[WhiteFideId "13402390"]
[BlackFideId "13502956"]
[WhiteElo "2560"]
[BlackElo "2662"]
[Result "1-0"]
[Round "06"]
[TimeControl "180+1"]
[Date "2022.02.15"]
[WhiteClock "0:00:25"]
[BlackClock "0:00:04"]

1. e4 {[%clk 0:03:00]}  c5 {[%clk 0:03:00]} 2. Nc3 {[%clk 0:03:00]}  Nc6 {[%clk 0:03:00]} 3. f4 {[%clk 0:03:00]}  g6 {[%clk 0:03:00]} 4. Nf3 {[%clk 0:03:00]}  Bg7 {[%clk 0:03:00]} 5. Bb5 {[%clk 0:02:59]}  Nd4 {[%clk 0:03:00]} 6. Bc4 {[%clk 0:02:59]}  d6 {[%clk 0:02:49]} 7. d3 {[%clk 0:02:57]}  Nf6 {[%clk 0:02:39]} 8. Nxd4 {[%clk 0:02:50]}  cxd4 {[%clk 0:02:39]} 9. Ne2 {[%clk 0:02:50]}  d5 {[%clk 0:02:05]} 10. Bb5+ {[%clk 0:02:32]}  Kf8 {[%clk 0:01:58]} 11. e5 {[%clk 0:02:31]}  Qa5+ {[%clk 0:01:57]} 12. Bd2 {[%clk 0:02:28]}  Qxb5 {[%clk 0:01:57]} 13. exf6 {[%clk 0:02:29]}  Bxf6 {[%clk 0:01:58]} 14. O-O {[%clk 0:02:28]}  h5 {[%clk 0:01:48]} 15. b3 {[%clk 0:02:25]}  h4 {[%clk 0:01:46]} 16. h3 {[%clk 0:02:24]}  Bf5 {[%clk 0:01:45]} 17. Bc1 {[%clk 0:02:07]}  Rc8 {[%clk 0:01:41]} 18. Bb2 {[%clk 0:02:08]}  Qb6 {[%clk 0:01:41]} 19. Rc1 {[%clk 0:02:04]}  Rg8 {[%clk 0:01:02]} 20. Qe1 {[%clk 0:02:03]}  g5 {[%clk 0:01:02]} 21. fxg5 {[%clk 0:01:51]}  Rxg5 {[%clk 0:01:03]} 22. Kh1 {[%clk 0:01:49]}  e5 {[%clk 0:00:49]} 23. Qxh4 {[%clk 0:01:41]}  Ke7 {[%clk 0:00:39]} 24. Qf2 {[%clk 0:01:15]}  Rh8 {[%clk 0:00:27]} 25. Ng1 {[%clk 0:01:16]}  Rhg8 {[%clk 0:00:15]} 26. Rce1 {[%clk 0:01:11]}  Kd7 {[%clk 0:00:14]} 27. Bc1 {[%clk 0:01:07]}  Rh5 {[%clk 0:00:13]} 28. Qf3 {[%clk 0:01:07]}  Rgh8 {[%clk 0:00:13]} 29. Qxd5+ {[%clk 0:01:06]}  Qd6 {[%clk 0:00:12]} 30. Qxf7+ {[%clk 0:01:04]}  Kc8 {[%clk 0:00:12]} 31. Ba3 {[%clk 0:00:49]}  Qc6 {[%clk 0:00:12]} 32. Qc4 {[%clk 0:00:49]}  Qxc4 {[%clk 0:00:03]} 33. bxc4 {[%clk 0:00:50]}  Bh4 {[%clk 0:00:02]} 34. Rxe5 {[%clk 0:00:47]}  Bd7 {[%clk 0:00:03]} 35. Rxh5 {[%clk 0:00:45]}  Rxh5 {[%clk 0:00:04]} 36. Nf3 {[%clk 0:00:43]}  Bg3 {[%clk 0:00:04]} 37. Nxd4 {[%clk 0:00:42]}  Ra5 {[%clk 0:00:04]} 38. Bc1 {[%clk 0:00:30]}  Rxa2 {[%clk 0:00:04]} 39. Rf8+ {[%clk 0:00:27]}  Kc7 {[%clk 0:00:05]} 40. Bf4+ {[%clk 0:00:28]}  Bxf4 {[%clk 0:00:05]} 41. Rxf4 {[%clk 0:00:29]}  a5 {[%clk 0:00:06]} 42. h4 {[%clk 0:00:26]}  a4 {[%clk 0:00:06]} 43. h5 {[%clk 0:00:27]}  a3 {[%clk 0:00:06]} 44. h6 {[%clk 0:00:26]}  Ra1+ {[%clk 0:00:03]} 45. Kh2 {[%clk 0:00:27]}  a2 {[%clk 0:00:04]} 46. Nb3 {[%clk 0:00:25]}  Rb1 {[%clk 0:00:03]} 47. h7 {[%clk 0:00:25]}  Rxb3 {[%clk 0:00:04]} 48. h8=Q {[%clk 0:00:25]}  Rb5 {[%clk 0:00:04]} 49. cxb5 {[%clk 0:00:25]} 1-0


[Site "https://www.chess.com"]